fUSD/lending_fUSD_20240529
["ID","MTS","AMOUNT","RATE_DAILY","PERIOD"]
[328150547,1716942639141,-315.84464154,0.00035498,4]
[328150549,1716942639151,-825.9169054,0.00035498,4]
[328150551,1716942639162,-256.50340687,0.00035498,4]
[328150553,1716942639172,-165.21465843,0.00035498,4]
[328150556,1716942639182,-155.17573238,0.00035498,4]
[328150558,1716942639191,-208.33721174,0.00035498,4]
[328150560,1716942639202,-76.1640238,0.00035498,4]
[328150562,1716942639212,-273.57519809,0.00035498,4]
[328150564,1716942639222,-404.77250217,0.00035498,4]
[328150566,1716942639231,-171.79971994,0.00035498,4]
[328150568,1716942639240,-155.0,0.00035498,4]
[328150570,1716942639249,-555.78791416,0.00035498,4]
[328150573,1716942639264,-746.89027862,0.00035498,4]
[328150575,1716942639277,-494.72760592,0.00035498,4]
[328150577,1716942639289,-675.13887568,0.00035498,4]
[328150579,1716942639300,-1651.94935281,0.00035498,4]
[328150581,1716942639312,-4090.50266217,0.00035498,4]
[328150584,1716942639321,-226.65825705,0.00035498,4]
[328150586,1716942639331,-157.90429605,0.00035498,4]
[328150588,1716942639340,-172.5998299,0.00035498,4]
[328150590,1716942639349,-2361.52496939,0.00035498,4]
[328150592,1716942639358,-155.74225539,0.00035498,4]
[328150593,1716942639367,-309.60510547,0.00035498,4]
[328150595,1716942639376,-265.67139027,0.00035498,4]
[328150597,1716942639386,-247.08617807,0.00035498,4]
[328150599,1716942639395,-387.93842144,0.00035498,4]
[328150601,1716942639404,-698.90110213,0.00035498,4]
[328150603,1716942639414,-1773.05966905,0.00035498,4]
[328150604,1716942639423,-5471.05358048,0.00035498,4]
[328150605,1716942639441,-7694.20000002,0.00035498,4]
[328150607,1716942639453,-2145.76887824,0.00035498,4]
[328150609,1716942639464,-2260.32504053,0.00035498,4]
[328150617,1716942640601,-152.86815809,0.00035398,2]
[328150618,1716942640611,-681.43362743,0.00035498,4]
[328150619,1716942640682,-473.48421737,0.00035498,4]
[328150620,1716942641447,-2736.8,0.00035498,4]
[328150622,1716942643084,-2270.87902964,0.00035498,4]
[328150623,1716942643096,-22621.25286893,0.00035498,4]
[328150624,1716942643106,-155.83533319,0.00035498,4]
[328150625,1716942643116,-402.64233948,0.00035498,4]
[328150626,1716942643126,-155.0,0.00035498,4]
[328150627,1716942643135,-326.04893454,0.00035498,4]
[328150628,1716942643145,-155.59824231,0.00035498,4]
[328150629,1716942643154,-618.8768531,0.00035498,4]
[328150630,1716942643163,-314.81387529,0.00035498,4]
[328150631,1716942643173,-181.8149978,0.00035498,4]
[328150632,1716942643183,-202.33976626,0.00035498,4]
[328150633,1716942643193,-230.61643751,0.00035498,4]
[328150634,1716942643203,-2456.43461145,0.00035498,4]
[328150635,1716942643213,-155.87982302,0.00035498,4]
[328150636,1716942643222,-157.60689653,0.00035498,4]
[328150637,1716942643232,-2807.65179249,0.00035498,4]
[328150638,1716942643241,-308.06491791,0.00035498,4]
[328150639,1716942643250,-155.35744598,0.00035498,4]
[328150640,1716942643260,-155.09581377,0.00035498,4]
[328150641,1716942643269,-309.80138013,0.00035498,4]
[328150642,1716942643279,-201.52068293,0.00035498,4]
[328150643,1716942643288,-155.0,0.00035498,4]
[328150644,1716942643297,-199.86404443,0.00035498,4]
[328150645,1716942643307,-2413.60655903,0.00035498,4]
[328150646,1716942643316,-155.64032327,0.00035498,4]
[328150647,1716942643326,-535.6337843,0.00035498,4]
[328150648,1716942643336,-155.0,0.00035498,4]
[328150649,1716942643345,-155.13037829,0.00035498,4]
[328150650,1716942643354,-155.0,0.00035498,4]
[328150651,1716942643363,-362.99225394,0.00035498,4]
[328150652,1716942643372,-198.7636138,0.00035498,4]
[328150653,1716942643381,-155.0,0.00035498,4]
[328150654,1716942643391,-201.98049963,0.00035498,4]
[328150655,1716942643401,-156.15446369,0.00035498,4]
[328150656,1716942643410,-165.39781373,0.00035498,4]
[328150657,1716942643419,-256.67681726,0.00035498,4]
[328150658,1716942643429,-155.85480608,0.00035498,4]
[328150659,1716942643438,-155.0,0.00035498,4]
[328150660,1716942643447,-199.62095941,0.00035498,4]
[328150661,1716942643457,-286.67348432,0.00035498,4]
[328150662,1716942643466,-280.37942823,0.00035498,4]
[328150663,1716942643476,-162.31069589,0.00035498,4]
[328150664,1716942643485,-200.34341848,0.00035498,4]
[328150665,1716942643496,-155.0,0.00035498,4]
[328150666,1716942643505,-173.0772223,0.00035498,4]
[328150667,1716942643514,-1532.67439124,0.00035498,4]
[328150668,1716942643523,-887.34537112,0.00035498,4]
[328150669,1716942643533,-156.15078988,0.00035498,4]
[328150670,1716942643543,-155.0,0.00035498,4]
[328150671,1716942643552,-156.06342329,0.00035498,4]
[328150672,1716942643562,-191.28432807,0.00035498,4]
[328150673,1716942643571,-201.75450533,0.00035498,4]
[328150674,1716942643581,-200.21998404,0.00035498,4]
[328150675,1716942643591,-208.17791052,0.00035498,4]
[328150676,1716942643600,-163.45991301,0.00035498,4]
[328150677,1716942643609,-162.34966112,0.00035498,4]
[328150678,1716942643619,-171.99678829,0.00035498,4]
[328150679,1716942643628,-333.25588851,0.00035498,4]
[328150680,1716942643638,-656.27275998,0.00035498,4]
[328150681,1716942643648,-2667.8199318,0.00035498,4]
[328150682,1716942643658,-574.34871661,0.00035498,4]
[328150683,1716942643668,-387.05071317,0.00035498,4]
[328150684,1716942643678,-200.58082886,0.00035498,4]
[328150685,1716942643687,-13435.07819655,0.00035498,4]
[328150686,1716942643701,-51450.38497916,0.00035498,4]
[328150687,1716942643713,-316.156902,0.00035498,4]
[328150689,1716942643724,-4316.5918931,0.00035498,4]
[328150691,1716942643736,-8334.29170271,0.00035498,4]
[328150693,1716942643749,-3783.98196052,0.00035498,4]
[328150695,1716942643761,-688.87871493,0.00035498,4]
[328150698,1716942643772,-665.1399253,0.00035498,4]
[328150700,1716942643783,-292.00081544,0.00035498,4]
[328150702,1716942643795,-25902.17929169,0.00035498,4]
[328150704,1716942643806,-368.59145831,0.00035498,4]
[328150911,1716942647180,-155.17140119,0.00035497,4]
[328150912,1716942647191,-465.36840606,0.00035498,4]
[328150913,1716942647203,-259.93831373,0.00035498,4]
[328150914,1716942647231,-1828.61335958,0.00035498,4]
[328150915,1716942647308,-1441.54008526,0.00035498,4]
[328150916,1716942647320,-1330.71149535,0.00035498,4]
[328150917,1716942647331,-713.10704317,0.00035498,4]
[328150918,1716942647348,-2892.03796281,0.00035498,4]
[328150919,1716942647359,-1004.2671813,0.00035498,4]
[328150920,1716942647489,-451.83164586,0.00035498,4]
[328150975,1716942823418,1269867.39793346,0.00013,2]
[328150976,1716942870037,500.0,0.00013973,2]
[328150977,1716942870386,500.0,0.00013973,2]
[328150978,1716942870747,500.0,0.00013973,2]
[328150979,1716942871145,869.0,0.00013973,2]
[328150980,1716942998343,590892.235297,0.00013,2]
[328150981,1716943135342,157.46,0.00013973,2]
[328150988,1716943622722,156.72,0.00013973,2]
[328151025,1716943835170,-151.0,0.00016914,2]
[328151026,1716943835180,-151.0,0.00018604,2]
[328151027,1716943835189,-150.0,0.00019725,2]
[328151028,1716943835198,-1795.98186301,0.00021698,8]
[328151029,1716943835210,-407.44106543,0.00021698,8]
[328151030,1716943835221,-731.32,0.00021698,8]
[328151031,1716943835232,-446.45853724,0.00021698,8]
[328151032,1716943835373,-3289.73579581,0.00021698,8]
[328151064,1716943838532,-492.85273851,0.00021698,8]
[328151065,1716943838543,-210.0,0.00021698,2]
[328151066,1716943838552,-1220.98726149,0.00022,2]
[328151067,1716943838563,-548.09566506,0.00022,2]
[328151068,1716943838574,-284.34,0.00022,2]
[328151069,1716943838585,-6891.231292,0.00022,2]
[328151070,1716943838640,-64.05747009,0.00022,2]
[328151071,1716943838649,-157.46,0.00022174,2]
[328151072,1716943838659,-750.0,0.00027,2]
[328151073,1716943838669,-150.4563769,0.00027882,2]
[328151074,1716943838678,-800.0,0.00029,2]
[328151075,1716943838687,-216.92,0.00029766,2]
[328151076,1716943838698,-157.46,0.00030374,2]
[328151077,1716943838707,-850.0,0.00031,2]
[328151078,1716943838717,-200.0,0.00031599,2]
[328151079,1716943838727,-404.0,0.00031911,2]
[328151080,1716943838737,-164.0,0.00031911,2]
[328151081,1716943838746,-257.719,0.00031911,2]
[328151082,1716943838755,-203.404,0.00031911,2]
[328151083,1716943838765,-342.44,0.0003203,2]
[328151084,1716943838774,-250.0,0.0003203,2]
[328151085,1716943838784,-216.92,0.0003203,2]
[328151086,1716943838793,-158.12639607,0.00032048,7]
[328151087,1716943838802,-250.0,0.00032063,2]
[328151089,1716943838812,-243.06,0.00032071,120]
[328151091,1716943838821,-250.0,0.00032071,2]
[328151093,1716943838830,-168.196,0.00032071,2]
[328151095,1716943838840,-466.72,0.00032103,2]
[328151097,1716943838849,-2751.0,0.00032135,2]
[328151099,1716943838858,-8923.83621176,0.00032144,2]
[328151101,1716943838872,-6861.79931687,0.00032144,2]
[328151105,1716943838902,-600.22369564,0.00032144,2]
[328151107,1716943838913,-4762.008734,0.00032144,2]
[328151114,1716943840916,-2742.13204173,0.00032144,2]
[328151115,1716943840927,-456.3,0.00032154,2]
[328151116,1716943840937,-2312.92,0.0003216,2]
[328151117,1716943840946,-2449.67,0.00032343,2]
[328151118,1716943840956,-4699.08,0.00032359,2]
[328151119,1716943840967,-175.73,0.00032698,2]
[328151120,1716943840976,-16760.91331664,0.0003286,30]
[328151121,1716943840986,-900.0,0.00033,2]
[328151122,1716943840997,-153.7849766,0.00033136,7]
[328151123,1716943841006,-150.0,0.00033356,2]
[328151124,1716943841015,-1008.82,0.000334,2]
[328151125,1716943841024,-172.95,0.0003343,2]
[328151126,1716943841034,-1392.08333449,0.00033456,31]
[328151127,1716943841043,-545.24970964,0.00033522,5]
[328151128,1716943841053,-1925.56430445,0.00033522,5]
[328151129,1716943841062,-947.59327332,0.00033522,5]
[328151130,1716943841071,-574.36548295,0.00033522,5]
[328151131,1716943841081,-16678.57389814,0.00033522,5]
[328151132,1716943841092,-420.47847543,0.00033522,5]
[328151133,1716943841104,-5493.55,0.00033522,5]
[328151134,1716943841117,-396.51891434,0.00033522,5]
[328151135,1716943841129,-331.97574039,0.00033522,5]
[328151136,1716943841140,-3028.37527472,0.00033522,5]
[328151137,1716943841149,-147.44637096,0.00033522,5]
[328151138,1716943841161,-1999.7835296,0.00033522,5]
[328151139,1716943841172,-16110.34319452,0.00033522,5]
[328151140,1716943841181,-6844.78817146,0.00033522,5]
[328151141,1716943841190,-530.26450399,0.00033522,5]
[328151142,1716943841200,-752.79,0.00033537,2]
[328151143,1716943841210,-157.39,0.00033602,120]
[328151144,1716943841219,-168.196,0.00033755,2]
[328151145,1716943841399,-158.09,0.00033775,120]
[328151146,1716943841408,-216.92,0.00034294,2]
[328151147,1716943841419,-152.4176735,0.0003442,7]
[328151148,1716943841428,-537.0,0.00034435,2]
[328151149,1716943841437,-1878.34613952,0.000345,2]
[328151150,1716943841447,-300.0,0.00034559,120]
[328151151,1716943841456,-1008.82,0.0003461,2]
[328151152,1716943841466,-150.0,0.00034726,2]
[328151153,1716943841475,-537.0,0.0003479,2]
[328151154,1716943841484,-466.72,0.00034842,2]
[328151155,1716943841494,-150.0,0.00034911,2]
[328151156,1716943841503,-150.0,0.00034911,2]
[328151157,1716943841512,-950.0,0.00035,2]
[328151158,1716943841521,-202.77,0.00035,31]
[328151159,1716943841531,-500.0,0.00035014,120]
[328151160,1716943841540,-2736.30394,0.0003514,2]
[328151161,1716943841549,-156.03580886,0.00035143,3]
[328151162,1716943841558,-537.0,0.00035145,2]
[328151163,1716943841568,-1000.0,0.00035199,2]
[328151164,1716943841577,-2500.0,0.00035199,2]
[328151165,1716943841586,-268.67,0.00035289,2]
[328151166,1716943841596,-34748.33074942,0.00035297,61]
[328151167,1716943841608,-333.81892786,0.00035297,61]
[328151168,1716943841621,-460.63094984,0.00035297,61]
[328151169,1716943841632,-264.4956,0.00035297,61]
[328151170,1716943841644,-770.1184831,0.00035297,61]
[328151171,1716943841655,-1431.735824,0.00035297,61]
[328151172,1716943841666,-1147.94373023,0.00035297,61]
[328151173,1716943841677,-896.82497611,0.00035297,61]
[328151174,1716943841880,-7422.28114849,0.00035297,61]
[328151175,1716943841890,-600.0101,0.00035299,2]
[328151176,1716943841900,-155741.5499,0.00035299,2]
[328151177,1716943841910,-324.08662883,0.00035342,8]
[328151178,1716943841919,-500.0,0.00035342,8]
[328151179,1716943841928,-155.59502679,0.00035342,8]
[328151180,1716943841938,-500.0,0.00035342,8]
[328151181,1716943841947,-500.0,0.00035342,8]
[328151182,1716943841956,-500.0,0.00035342,8]
[328151183,1716943841966,-500.0,0.00035342,8]
[328151184,1716943841975,-500.0,0.00035342,8]
[328151185,1716943841984,-500.0,0.00035342,8]
[328151186,1716943841994,-500.0,0.00035342,8]
[328151187,1716943842003,-769.69,0.00035342,8]
[328151188,1716943842012,-500.0,0.00035342,8]
[328151189,1716943842021,-500.0,0.00035342,8]
[328151190,1716943842029,-500.0,0.00035342,8]
[328151191,1716943842038,-2083.33,0.00035342,8]
[328151192,1716943842048,-500.0,0.00035342,8]
[328151193,1716943842057,-5000.0,0.00035342,4]
[328151194,1716943842066,-500.0,0.00035342,8]
[328151195,1716943842075,-210.5982,0.00035397,2]
[328151197,1716943842084,-1246.3292,0.00035397,2]
[328151198,1716943842093,-5695.0215,0.00035397,2]
[328151199,1716943842102,-214.23001839,0.00035397,7]
[328151200,1716943842112,-322.71818217,0.00035397,2]
[328151202,1716943842123,-214.23001833,0.00035398,7]
[328151204,1716943842133,-214.23001833,0.00035398,7]
[328151206,1716943842142,-214.0,0.00035398,2]
[328151208,1716943842152,-1688.6493,0.00035398,2]
[328151210,1716943842162,-1000.0,0.00035398,2]
[328151212,1716943842171,-214.23001833,0.00035399,7]
[328151214,1716943842180,-1477.45175473,0.00035399,8]
[328151216,1716943842190,-214.23001833,0.00035399,7]
[328151218,1716943842199,-1477.45175473,0.00035399,8]
[328151220,1716943842208,-1477.45175473,0.00035399,8]
[328151222,1716943842218,-1477.45175473,0.00035399,8]
[328151224,1716943842227,-1477.45175473,0.00035399,8]
[328151226,1716943842236,-1477.45175473,0.00035399,8]
[328151228,1716943842247,-214.23001833,0.000354,7]
[328151230,1716943842258,-1477.45175473,0.000354,8]
[328151232,1716943842267,-1477.45175473,0.000354,8]
[328151234,1716943842276,-1477.45175473,0.000354,8]
[328151236,1716943842285,-1477.45175473,0.000354,8]
[328151238,1716943842297,-1477.45175473,0.000354,8]
[328151240,1716943842306,-1477.45175473,0.000354,8]
[328151242,1716943842315,-214.23001833,0.000354,7]
[328151243,1716943842323,-157.052909,0.00035438,48]
[328151245,1716943842333,-157.052909,0.00035448,48]
[328151246,1716943842343,-268.67,0.00035487,2]
[328151248,1716943842353,-268.67,0.00035488,2]
[328151250,1716943842362,-162.55,0.00035489,2]
[328151252,1716943842372,-268.67,0.00035489,2]
[328151254,1716943842381,-268.67,0.00035489,2]
[328151256,1716943842391,-268.67,0.00035489,2]
[328151258,1716943842400,-268.67,0.00035489,2]
[328151260,1716943842410,-268.67,0.00035489,2]
[328151262,1716943842419,-268.67,0.00035489,2]
[328151264,1716943842428,-268.67,0.00035489,2]
[328151266,1716943842437,-2178.91351149,0.0003549,10]
[328151267,1716943842446,-500.0,0.00035496,8]
[328151269,1716943842456,-500.0,0.00035496,8]
[328151271,1716943842465,-500.0,0.00035496,8]
[328151273,1716943842475,-500.0,0.00035496,8]
[328151275,1716943842484,-512.44927159,0.00035496,8]
[328151277,1716943842494,-500.0,0.00035496,8]
[328151279,1716943842503,-769.69,0.00035496,8]
[328151281,1716943842512,-2083.33,0.00035496,8]
[328151283,1716943842522,-500.0,0.00035496,8]
[328151285,1716943842531,-500.0,0.00035496,8]
[328151286,1716943842540,-2809.43064702,0.00035497,2]
[328151287,1716943842549,-32769.77976108,0.00035497,4]
[328151288,1716943842559,-155.0,0.00035497,4]
[328151289,1716943842568,-523.82451147,0.00035497,4]
[328151290,1716943842577,-804.18664536,0.00035497,4]
[328151291,1716943842586,-7521.94316228,0.00035497,4]
[328151292,1716943842596,-634.05792568,0.00035497,4]
[328151293,1716943842605,-325.10674615,0.00035497,4]
[328151294,1716943842614,-257.20801344,0.00035497,4]
[328151295,1716943842623,-200.0,0.00035497,2]
[328151296,1716943842632,-155.0,0.00035497,4]
[328151297,1716943842642,-410.67512791,0.00035497,2]
[328151298,1716943842652,-6776.29426629,0.00035497,4]
[328151299,1716943842661,-6244.01880649,0.00035497,4]
[328151300,1716943842670,-5190.00947145,0.00035497,4]
[328151301,1716943842680,-162.76290291,0.00035497,4]
[328151302,1716943842689,-18930.61651222,0.00035497,5]
[328151303,1716943842698,-605.4629941,0.00035497,4]
[328151304,1716943842707,-416.94245182,0.00035497,8]
[328151305,1716943842717,-23224.18720702,0.00035498,4]
[328151306,1716943842727,-1247.87118364,0.00035498,4]
[328151307,1716943842738,-4278.94902585,0.00035498,4]
[328151308,1716943842748,-356.13965081,0.00035498,4]
[328151309,1716943842758,-155.0,0.00035498,4]
[328151310,1716943842769,-155.0001,0.00035498,4]
[328151311,1716943842778,-324.08662983,0.00035498,4]
[328151312,1716943842788,-3079.97215406,0.00035498,4]
[328151313,1716943842798,-891.54116358,0.00035498,2]
[328151314,1716943842807,-80767.88,0.00035498,2]
[328151315,1716943842817,-9276.69894063,0.00035498,5]
[328151316,1716943842826,-2299.4770155,0.00035498,4]
[328151317,1716943842836,-500.0,0.00035498,8]
[328151318,1716943842845,-500.0,0.00035498,8]
[328151319,1716943842854,-492.2844857,0.00035498,8]
[328151320,1716943842864,-500.0,0.00035498,7]
[328151321,1716943842874,-500.0,0.00035498,8]
[328151322,1716943842884,-500.0,0.00035498,8]
[328151323,1716943842893,-500.0,0.00035498,8]
[328151324,1716943842903,-500.0,0.00035498,8]
[328151325,1716943842913,-500.0,0.00035498,8]
[328151326,1716943842923,-769.69,0.00035498,8]
[328151327,1716943842932,-769.69,0.00035498,8]
[328151328,1716943842942,-769.69,0.00035498,8]
[328151329,1716943842952,-769.69,0.00035498,8]
[328151330,1716943842961,-769.69,0.00035498,8]
[328151331,1716943842971,-769.69,0.00035498,8]
[328151332,1716943842980,-769.69,0.00035498,8]
[328151333,1716943842990,-769.69,0.00035498,8]
[328151334,1716943842999,-769.69,0.00035498,8]
[328151335,1716943843008,-769.69,0.00035498,8]
[328151336,1716943843017,-2083.33,0.00035498,8]
[328151337,1716943843026,-2083.33,0.00035498,8]
[328151338,1716943843036,-2083.33,0.00035498,8]
[328151339,1716943843045,-2083.33,0.00035498,8]
[328151340,1716943843055,-2083.33,0.00035498,8]
[328151341,1716943843064,-2083.33,0.00035498,8]
[328151342,1716943843073,-2083.33,0.00035498,8]
[328151343,1716943843083,-2083.33,0.00035498,8]
[328151344,1716943843092,-2083.33,0.00035498,8]
[328151345,1716943843101,-2083.33,0.00035498,8]
[328151346,1716943843110,-500.0,0.00035498,8]
[328151347,1716943843121,-500.0,0.00035498,8]
[328151348,1716943843130,-500.0,0.00035498,8]
[328151349,1716943843139,-500.0,0.00035498,8]
[328151350,1716943843148,-500.0,0.00035498,8]
[328151351,1716943843158,-500.0,0.00035498,8]
[328151352,1716943843167,-500.0,0.00035498,8]
[328151353,1716943843176,-500.0,0.00035498,8]
[328151355,1716943843185,-500.0,0.00035498,8]
[328151356,1716943843194,-500.0,0.00035498,8]
[328151358,1716943843203,-465.17,0.00035498,8]
[328151359,1716943843212,-368.0,0.00035499,5]
[328151361,1716943843221,-21094.00045886,0.00035499,11]
[328151362,1716943843230,-473128.13213394,0.00035499,2]
[328151364,1716943843243,-101260.63766077,0.00035499,2]
[328151366,1716943843258,-322.87653265,0.00035499,2]
[328151367,1716943843269,-894.5496708,0.00035499,2]
[328151368,1716943843281,-712.87,0.00035499,2]
[328151369,1716943843293,-2191.8796206,0.00035499,2]
[328151370,1716943843304,-281.70783134,0.00035499,2]
[328151371,1716943843315,-725.44517796,0.00035499,2]
[328151372,1716943843328,-770.44000003,0.00035499,2]
[328151373,1716943843339,-933.91759728,0.00035499,2]
[328151374,1716943843349,-5528.7411405,0.00035499,2]
[328151375,1716943843361,-303.94329984,0.00035499,2]
[328151376,1716943843373,-406.24944498,0.00035499,2]
[328151377,1716943843391,-327.18851491,0.00035499,2]
[328151378,1716943843432,-10990.8054167,0.00035499,2]
[328151379,1716943843469,-58948.01754763,0.00035499,2]
[328151380,1716943843663,-1205.74519076,0.00035499,2]
[328151381,1716943843780,-1116.20467419,0.00035499,2]
[328151840,1716944134122,158.92,0.00013973,2]
[328151841,1716944655914,191.91,0.00013973,2]
[328151842,1716944774887,573.45,0.0002811,120]
[328151869,1716945031476,-303.2,0.00015465,2]
[328151870,1716945031486,-303.2,0.00016963,2]
[328151872,1716945031496,-303.2,0.00018462,2]
[328151874,1716945031505,-303.2,0.0001996,2]
[328151875,1716945031515,-303.2,0.00021459,3]
[328151876,1716945031524,-303.2,0.00022958,3]
[328151877,1716945031534,-55.90744736,0.00024456,5]
[328151878,1716945031545,-247.29255264,0.00024456,5]
[328151879,1716945031556,-303.2,0.00025955,5]
[328151880,1716945031565,-303.2,0.00027453,7]
[328151881,1716945031575,-303.2,0.00028952,7]
[328151882,1716945031584,-110.41786088,0.00030451,7]
[328151883,1716945031596,-192.78213912,0.00030451,7]
[328151884,1716945031606,-229.13,0.00031022,2]
[328151885,1716945031619,-1264.92213148,0.00031099,4]
[328151886,1716945031632,-486.93,0.00031099,4]
[328151887,1716945031643,-787.72537109,0.00031099,4]
[328151888,1716945031655,-638.49582452,0.00031099,4]
[328151889,1716945031671,-1072.63780784,0.00031099,4]
[328151890,1716945031682,-1546.09238039,0.00031099,4]
[328151891,1716945031695,-64.17235968,0.00031099,4]
[328151892,1716945031705,-848.10226923,0.000311,4]
[328151893,1716945031717,-421.89773077,0.000311,4]
[328151894,1716945031726,-511.0,0.000311,4]
[328151895,1716945031736,-200.0,0.00031498,2]
[328151896,1716945031745,-641.44,0.00031498,2]
[328151897,1716945031755,-250.0,0.00031559,2]
[328151898,1716945031764,-3752.11,0.00031587,2]
[328151899,1716945031774,-2751.0,0.00031588,2]
[328151900,1716945031783,-436.85825085,0.00031592,4]
[328151901,1716945031793,-1500.0,0.00031595,2]
[328151902,1716945031802,-168.196,0.00031595,2]
[328151903,1716945031812,-342.43,0.00031672,2]
[328151904,1716945031821,-200.0,0.00031709,2]
[328151905,1716945031830,-250.0,0.00031726,2]
[328151906,1716945031839,-1172.02,0.0003174,2]
[328151907,1716945031849,-23880.0,0.00031745,2]
[328151908,1716945031860,-150.0,0.00031766,2]
[328151909,1716945031871,-250.0,0.00031894,2]
[328151910,1716945031880,-428.07,0.00031894,2]
[328151912,1716945031890,-202.55,0.00031907,120]
[328151913,1716945031899,-811.0,0.00031911,2]
[328151914,1716945031908,-446.46,0.00031935,2]
[328151915,1716945031918,-200.0,0.00031941,2]
[328151916,1716945031927,-303.2,0.00031949,7]
[328151917,1716945031937,-159.18,0.00031998,2]
[328151918,1716945031947,-600.0,0.00032008,2]
[328151919,1716945031956,-159.18,0.00032165,2]
[328151920,1716945031965,-1000.0,0.00032197,2]
[328151921,1716945031975,-172.95,0.00032216,2]
[328151922,1716945031984,-172.86,0.00032244,120]
[328151923,1716945031993,-159.18,0.00032332,2]
[328151924,1716945032003,-159.18,0.00032499,2]
[328151925,1716945032012,-159.18,0.00032665,2]
[328151926,1716945032022,-159.18,0.00032832,2]
[328151927,1716945032031,-159.18,0.00032999,2]
[328151928,1716945032040,-159.18,0.00033166,2]
[328151929,1716945032049,-168.196,0.00033254,2]
[328151930,1716945032058,-229.13,0.00033286,2]
[328151931,1716945032068,-159.18,0.00033332,2]
[328151932,1716945032076,-1002.74,0.000334,2]
[328151933,1716945032085,-159.18,0.00033499,2]
[328151934,1716945032095,-214.23,0.00033572,120]
[328151935,1716945032104,-159.18,0.00033666,2]
[328151936,1716945032114,-2769.0,0.00034,3]
[328151937,1716945032123,-151.36,0.00034286,2]
[328151938,1716945032133,-154.87,0.00034379,2]
[328151939,1716945032142,-154.87,0.00034391,2]
[328151940,1716945032151,-154.87,0.00034402,2]
[328151941,1716945032160,-154.87,0.00034414,2]
[328151942,1716945032169,-154.87,0.00034425,2]
[328151943,1716945032179,-651.0,0.00034435,2]
[328151944,1716945032188,-520.0,0.00034435,2]
[328151945,1716945032197,-154.87,0.00034437,2]
[328151946,1716945032206,-154.87,0.00034448,2]
[328151947,1716945032215,-154.87,0.00034459,2]
[328151948,1716945032225,-154.87,0.00034471,2]
[328151949,1716945032234,-1172.02,0.0003448,2]
[328151950,1716945032243,-154.87,0.00034482,2]
[328151951,1716945032252,-154.87,0.00034494,2]
[328151952,1716945032262,-154.87,0.00034505,2]
[328151953,1716945032272,-154.87,0.00034517,2]
[328151954,1716945032281,-154.87,0.00034528,2]
[328151955,1716945032290,-154.87,0.0003454,2]
[328151956,1716945032301,-154.87,0.00034551,2]
[328151957,1716945032310,-1002.74,0.0003458,2]
[328151958,1716945032320,-651.0,0.0003479,2]
[328151959,1716945032329,-520.0,0.0003479,2]
[328151960,1716945032339,-2739.0,0.00034939,5]
[328151961,1716945032348,-168.196,0.00035087,2]
[328151962,1716945032536,-740.0492,0.00035099,2]
[328151963,1716945032551,-500.0,0.000351,4]
[328151964,1716945032561,-500.0,0.000351,4]
[328151965,1716945032572,-500.0,0.000351,4]
[328151966,1716945032581,-500.0,0.000351,4]
[328151967,1716945032590,-500.0,0.000351,4]
[328151968,1716945032599,-500.0,0.000351,4]
[328151969,1716945032608,-1042.70871838,0.0003514,2]
[328151970,1716945032625,-1237.54456162,0.0003514,2]
[328151971,1716945032635,-651.0,0.00035145,2]
[328151972,1716945032644,-520.0,0.00035145,2]
[328151973,1716945032655,-417.41818983,0.00035189,2]
[328151974,1716945032664,-417.41818983,0.00035189,2]
[328151975,1716945032673,-417.41818983,0.00035189,2]
[328151976,1716945032682,-330631.1793,0.00035199,2]
[328151977,1716945032691,-380.70037141,0.00035228,2]
[328151978,1716945032708,-151.0,0.00035252,2]